[Event "41st Jacques-Lemans-Open 2022"]
[Site "St. Veit/Glan"]
[Date "2022.07.11"]
[Round "4.33"]
[White "Lipp, Alfred"]
[Black "Burbach, Brunel Baron"]
[Result "1/2-1/2"]
[ECO "A25"]
[WhiteElo "2011"]
[BlackElo "1820"]
[Annotator "ChessBase"]
[PlyCount "119"]
[EventDate "2022.07.09"]
[EventType "swiss"]
[EventCountry "AUT"]
[SourceTitle "playchess.com"]
[Source "ChessBase"]
[SourceQuality "1"]
[TimeControl "40/5400+30:1800+30"]

1. c4 {[%emt 0:00:08]} e5 {[%emt 0:00:15]} 2. Nc3 {[%emt 0:00:12]} Nc6 {[%emt 0:00:05]} 3. g3 {[%emt 0:00:13]} f5 {[%emt 0:00:15]} 4. d3 {[%emt 0:00:24]} Nf6 {[%emt 0:00:18]} 5. Bg2 {[%emt 0:00:11]} d6 {[%emt 0:02:56]} 6. e3 {[%emt 0:02:08]} Be6 {[%emt 0:02:35]} 7. Nd5 {[%emt 0:00:39]} g6 {[%emt 0:16:22]} 8. Qb3 {[%emt 0:04:49]} Bc8 {[%emt 0:00:12]} 9. Ne2 {[%emt 0:05:26]} Bg7 {[%emt 0:01:44]} 10. Nec3 {[%emt 0:00:58]} Nxd5 {[%emt 0:03:31]} 11. cxd5 {[%emt 0:05:23]} Ne7 {[%emt 0:00:18]} 12. Qc4 {[%emt 0:14:27]} a6 {[%emt 0:02:37]} 13. a4 {[%emt 0:02:56]} Bd7 {[%emt 0:04:51]} 14. a5 {[%emt 0:03:24]} c6 {[%emt 0:05:42]} 15. O-O {[%emt 0:07:37]} b5 {[%emt 0:06:11]} 16. axb6 {[%emt 0:02:46]} Qxb6 {[%emt 0:00:26]} 17. dxc6 {[%emt 0:04:51]} Bxc6 {[%emt 0:01:04]} 18. Bxc6+ {[%emt 0:00:46]} Qxc6 {[%emt 0:00:16]} 19. Qxc6+ {[%emt 0:08:47]} Nxc6 {[%emt 0:00:10]} 20. Nd5 {[%emt 0:00:16]} Kf7 {[%emt 0:10:27]} 21. Bd2 {[%emt 0:00:58]} Rhb8 {[%emt 0:06:13]} 22. Bc3 {[%emt 0:01:08]} Ne7 {[%emt 0:02:20]} 23. Nxe7 {[%emt 0:07:43]} Kxe7 {[%emt 0:00:05]} 24. Ra5 {[%emt 0:00:10]} Rb6 {[%emt 0:07:17]} 25. Rfa1 {[%emt 0:00:23]} Kd7 {[%emt 0:00:42]} 26. f4 {[%emt 0:08:20]} Bh8 {[%emt 0:07:57]} 27. fxe5 {[%emt 0:03:02]} Bxe5 {[%emt 0:00:34]} 28. d4 {[%emt 0:00:22]} Bh8 {[%emt 0:02:18]} 29. Kf2 {[%emt 0:00:18]} Kc6 {[%emt 0:01:24]} 30. Ke2 {[%emt 0:04:05]} Kb7 {[%emt 0:01:25]} 31. Kd3 {[%emt 0:00:41]} Rc8 {[%emt 0:01:37]} 32. e4 {[%emt 0:01:44]} fxe4+ {[%emt 0:00:35]} 33. Kxe4 {[%emt 0:00:05]} Re8+ {[%emt 0:03:05]} 34. Kd3 {[%emt 0:00:18]} Rc8 {[%emt 0:06:01]} 35. g4 {[%emt 0:02:11]} Bg7 {[%emt 0:02:53]} 36. h4 {[%emt 0:01:20]} Re8 {[%emt 0:01:36]} 37. h5 {[%emt 0:01:12]} gxh5 {[%emt 0:01:10]} 38. Rxh5 {[%emt 0:00:14]} h6 {[%emt 0:00:21]} 39. Rf5 {[%emt 0:01:37]} Re7 {[%emt 0:00:39]} 40. Raf1 {[%emt 0:00:31]} Rc6 {[%emt 0:00:38]} 41. Ba5 {[%emt 0:31:34]} Kc8 {[%emt 0:01:34]} 42. g5 {[%emt 0:00:00]} hxg5 {[%emt 0:01:57]} 43. Rxg5 {[%emt 0:00:00]} Bh6 {[%emt 0:01:31]} 44. Rg8+ {[%emt 0:00:00]} Kb7 {[%emt 0:00:09]} 45. Re1 {[%emt 0:00:00]} Rxe1 {[%emt 0:01:59]} 46. Bxe1 {[%emt 0:00:00]} Rb6 {[%emt 0:12:51]} 47. b4 {[%emt 0:00:00]} d5 {[%emt 0:02:43]} 48. Rd8 {[%emt 0:00:00]} Rb5 {[%emt 0:00:20]} 49. Bg3 {[%emt 0:00:00]} a5 {[%emt 0:02:40]} 50. Rb8+ {[%emt 0:00:00]} Kc6 {[%emt 0:01:48]} 51. Rc8+ {[%emt 0:00:00]} Kb7 {[%emt 0:00:34]} 52. Rc7+ {[%emt 0:00:00]} Ka6 {[%emt 0:00:36]} 53. Bd6 {[%emt 0:00:00]} Rb7 {[%emt 0:06:08]} 54. Rxb7 {[%emt 0:00:00]} Kxb7 {[%emt 0:00:05]} 55. bxa5 {[%emt 0:00:00]} Ka6 {[%emt 0:00:12]} 56. Bc7 {[%emt 0:00:00]} Kb5 {[%emt 0:00:22]} 57. Kc3 {[%emt 0:00:00]} Bf8 {[%emt 0:00:22]} 58. Kb3 {[%emt 0:00:00]} Bg7 {[%emt 0:00:23]} 59. Kc3 {[%emt 0:01:49]} Bxd4+ {[%emt 0:00:25]} 60. Kxd4 {[%emt 0:00:17]} 1/2-1/2

[Event "41st Jacques-Lemans-Open 2022"]
[Site "St. Veit/Glan"]
[Date "2022.07.11"]
[Round "4.34"]
[White "Markun, Ozbej"]
[Black "Mayrhuber, Tobias"]
[Result "1-0"]
[ECO "C50"]
[WhiteElo "1915"]
[BlackElo "2010"]
[Annotator "ChessBase"]
[PlyCount "79"]
[EventDate "2022.07.09"]
[EventType "swiss"]
[EventCountry "AUT"]
[SourceTitle "playchess.com"]
[Source "ChessBase"]
[SourceQuality "1"]
[TimeControl "40/5400+30:1800+30"]

1. e4 {[%emt 0:00:06]} e5 {[%emt 0:00:07]} 2. Nf3 {[%emt 0:00:17]} Nc6 {[%emt 0:00:06]} 3. Bc4 {[%emt 0:00:08]} Bc5 {[%emt 0:00:08]} 4. O-O {[%emt 0:00:11]} Nf6 {[%emt 0:00:06]} 5. d3 {[%emt 0:00:11]} d6 {[%emt 0:00:15]} 6. c3 {[%emt 0:00:36]} h6 {[%emt 0:04:55]} 7. Re1 {[%emt 0:01:03]} O-O {[%emt 0:01:54]} 8. h3 {[%emt 0:09:20]} a6 {[%emt 0:01:31]} 9. Bb3 {[%emt 0:00:23]} Ba7 {[%emt 0:01:24]} 10. Nbd2 {[%emt 0:00:25]} Be6 {[%emt 0:06:47]} 11. Nf1 {[%emt 0:01:29]} Ne7 {[%emt 0:04:50]} 12. Ng3 {[%emt 0:02:28]} Ng6 {[%emt 0:01:39]} 13. d4 {[%emt 0:07:02]} Qe8 {[%emt 0:16:40]} 14. Be3 {[%emt 0:23:17]} Bxb3 {[%emt 0:07:50]} 15. Qxb3 {[%emt 0:00:00]} Qc6 {[%emt 0:00:22]} 16. d5 {[%emt 0:05:36]} Qb5 {[%emt 0:00:26]} 17. Qc2 {[%emt 0:01:38]} Bxe3 {[%emt 0:05:01]} 18. Rxe3 {[%emt 0:00:13]} Nf4 {[%emt 0:03:44]} 19. a4 {[%emt 0:01:06]} Qd7 {[%emt 0:01:47]} 20. a5 {[%emt 0:02:21]} b5 {[%emt 0:07:36]} 21. axb6 {[%emt 0:01:40]} cxb6 {[%emt 0:00:06]} 22. c4 {[%emt 0:01:44]} Rfc8 {[%emt 0:02:15]} 23. Rc3 {[%emt 0:06:46]} g6 {[%emt 0:02:03]} 24. b4 {[%emt 0:02:32]} Qc7 {[%emt 0:03:58]} 25. Nd2 {[%emt 0:11:32]} a5 {[%emt 0:08:38]} 26. bxa5 {[%emt 0:00:14]} Rxa5 {[%emt 0:00:17]} 27. Rb1 {[%emt 0:03:26]} Nd7 {[%emt 0:07:36]} 28. Nb3 {[%emt 0:02:26]} Ra3 {[%emt 0:02:02]} 29. Qb2 {[%emt 0:06:19]} Ra4 {[%emt 0:01:13]} 30. Nd2 {[%emt 0:02:57]} Rca8 {[%emt 0:03:00]} 31. Rb3 {[%emt 0:01:12]} Ra2 {[%emt 0:01:03]} 32. Qc1 {[%emt 0:00:06]} h5 {[%emt 0:02:20]} 33. Qd1 {[%emt 0:00:38]} Qd8 {[%emt 0:01:34]} 34. Ne2 {[%emt 0:06:21]} Nxh3+ {[%emt 0:00:31]} 35. Rxh3 {[%emt 0:01:33]} Qg5 {[%emt 0:00:18]} 36. Nf3 {[%emt 0:00:29]} Qg4 {[%emt 0:00:28]} 37. Nc3 {[%emt 0:00:38]} R2a3 {[%emt 0:00:09]} 38. Nb5 {[%emt 0:00:33]} Qxe4 {[%emt 0:00:21]} 39. Nxa3 {[%emt 0:00:20]} Rxa3 {[%emt 0:00:03]} 40. Nd2 {[%emt 0:00:35]} 1-0

[Event "41st Jacques-Lemans-Open 2022"]
[Site "St. Veit/Glan"]
[Date "2022.07.11"]
[Round "4.35"]
[White "Kempe, Caius Emilian"]
[Black "Mattenberger, Matthias"]
[Result "1-0"]
[ECO "D86"]
[WhiteElo "1877"]
[BlackElo "2005"]
[Annotator "ChessBase"]
[PlyCount "73"]
[EventDate "2022.07.09"]
[EventType "swiss"]
[EventCountry "AUT"]
[SourceTitle "playchess.com"]
[Source "ChessBase"]
[SourceQuality "1"]
[TimeControl "40/5400+30:1800+30"]

1. d4 {[%emt 0:00:02]} Nf6 {[%emt 0:00:16]} 2. c4 {[%emt 0:00:08]} g6 {[%emt 0:00:14]} 3. Nc3 {[%emt 0:00:06]} d5 {[%emt 0:00:21]} 4. cxd5 {[%emt 0:00:08]} Nxd5 {[%emt 0:00:21]} 5. e4 {[%emt 0:00:07]} Nxc3 {[%emt 0:00:33]} 6. bxc3 {[%emt 0:00:01]} Bg7 {[%emt 0:00:09]} 7. Bc4 {[%emt 0:00:12]} c5 {[%emt 0:00:24]} 8. Ne2 {[%emt 0:00:11]} Nc6 {[%emt 0:00:10]} 9. Be3 {[%emt 0:00:07]} O-O {[%emt 0:00:10]} 10. O-O {[%emt 0:00:07]} Bg4 {[%emt 0:00:17]} 11. f3 {[%emt 0:00:07]} Bd7 {[%emt 0:00:06]} 12. Rb1 {[%emt 0:00:06]} Qc7 {[%emt 0:00:15]} 13. Qd2 {[%emt 0:00:13]} Rfd8 {[%emt 0:00:40]} 14. Bf4 {[%emt 0:01:54]} Qc8 {[%emt 0:00:38]} 15. Bh6 {[%emt 0:02:06]} Bh8 {[%emt 0:08:59]} 16. Qe3 {[%emt 0:09:35]} Be8 {[%emt 0:14:49]} 17. dxc5 {[%emt 0:15:13]} Ne5 {[%emt 0:09:09]} 18. Bd5 {[%emt 0:05:32]} Bc6 {[%emt 0:01:05]} 19. Nf4 {[%emt 0:00:34]} e6 {[%emt 0:11:24]} 20. Bb3 {[%emt 0:01:45]} a5 {[%emt 0:04:21]} 21. Bg5 {[%emt 0:09:13]} Re8 {[%emt 0:10:41]} 22. Nd3 {[%emt 0:16:05]} a4 {[%emt 0:07:29]} 23. Nxe5 {[%emt 0:01:03]} axb3 {[%emt 0:03:15]} 24. Nxc6 {[%emt 0:00:11]} bxa2 {[%emt 0:00:44]} 25. Ne7+ Rxe7 {[%emt 0:00:18]} 26. Bxe7 {[%emt 0:00:29]} axb1=Q {[%emt 0:00:10]} 27. Rxb1 {[%emt 0:00:01]} Be5 {[%emt 0:00:57]} 28. Bd6 {[%emt 0:01:02]} Bf6 {[%emt 0:01:35]} 29. e5 {[%emt 0:00:17]} Bd8 {[%emt 0:01:35]} 30. Qe4 {[%emt 0:11:32]} Ra7 {[%emt 0:02:36]} 31. h3 {[%emt 0:07:29]} Kg7 {[%emt 0:01:12]} 32. Kh2 {[%emt 0:04:31]} h6 {[%emt 0:01:17]} 33. c4 {[%emt 0:06:27]} Qd7 {[%emt 0:02:20]} 34. Rb5 {[%emt 0:01:47]} Qc8 {[%emt 0:00:53]} 35. Qe3 {[%emt 0:02:31]} Qc6 {[%emt 0:01:04]} 36. Qd4 {[%emt 0:00:52]} Qd7 {[%emt 0:00:35]} 37. Bf8+ {[%emt 0:00:25]} 1-0

[Event "41st Jacques-Lemans-Open 2022"]
[Site "St. Veit/Glan"]
[Date "2022.07.11"]
[Round "4.36"]
[White "Wolfmajer, Wolfgang"]
[Black "Toefferl, Heimo"]
[Result "1-0"]
[ECO "C16"]
[WhiteElo "1861"]
[BlackElo "2003"]
[Annotator "ChessBase"]
[PlyCount "65"]
[EventDate "2022.07.09"]
[EventType "swiss"]
[EventCountry "AUT"]
[SourceTitle "playchess.com"]
[Source "ChessBase"]
[SourceQuality "1"]
[TimeControl "40/5400+30:1800+30"]

1. e4 {[%emt 0:00:08]} e6 {[%emt 0:00:06]} 2. d4 {[%emt 0:00:07]} d5 {[%emt 0:00:01]} 3. Nc3 {[%emt 0:00:24]} Bb4 {[%emt 0:00:11]} 4. e5 {[%emt 0:00:25]} b6 {[%emt 0:00:11]} 5. a3 {[%emt 0:00:24]} Bf8 {[%emt 0:00:08]} 6. Nf3 {[%emt 0:01:05]} h6 {[%emt 0:01:13]} 7. h4 {[%emt 0:03:45]} Ne7 {[%emt 0:04:01]} 8. b4 {[%emt 0:00:58]} c6 {[%emt 0:01:29]} 9. Rb1 {[%emt 0:04:24]} Bb7 {[%emt 0:05:16]} 10. Bd3 {[%emt 0:01:28]} Nd7 {[%emt 0:01:44]} 11. Bf4 {[%emt 0:01:55]} a5 {[%emt 0:00:55]} 12. Qd2 {[%emt 0:01:02]} axb4 {[%emt 0:03:56]} 13. axb4 {[%emt 0:00:19]} Nf5 {[%emt 0:03:44]} 14. g4 {[%emt 0:03:07]} Ne7 {[%emt 0:00:33]} 15. Ne2 {[%emt 0:04:27]} g6 {[%emt 0:04:10]} 16. Ng3 {[%emt 0:04:05]} Ra2 {[%emt 0:03:29]} 17. h5 {[%emt 0:01:59]} g5 {[%emt 0:00:30]} 18. Bxg5 {[%emt 0:00:16]} hxg5 {[%emt 0:00:20]} 19. Nxg5 {[%emt 0:00:12]} Bh6 {[%emt 0:01:25]} 20. O-O {[%emt 0:01:05]} Qc7 {[%emt 0:03:40]} 21. Qf4 {[%emt 0:10:20]} f6 {[%emt 0:07:11]} 22. Nxe6 {[%emt 0:00:26]} Bxf4 {[%emt 0:00:12]} 23. Nxc7+ {[%emt 0:00:05]} Kf7 {[%emt 0:01:01]} 24. e6+ {[%emt 0:02:15]} Kg7 {[%emt 0:00:44]} 25. Nxd5 {[%emt 0:00:12]} cxd5 {[%emt 0:01:13]} 26. exd7 {[%emt 0:00:14]} Bxg3 {[%emt 0:01:24]} 27. fxg3 {[%emt 0:01:08]} Raa8 {[%emt 0:05:31]} 28. Rbe1 {[%emt 0:00:43]} Nc6 {[%emt 0:06:19]} 29. b5 {[%emt 0:00:18]} Na5 {[%emt 0:02:20]} 30. Bg6 {[%emt 0:00:54]} Rhf8 {[%emt 0:07:36]} 31. Re7+ {[%emt 0:02:54]} Kg8 {[%emt 0:10:29]} 32. Rfe1 {[%emt 0:00:57]} Bc6 {[%emt 0:00:59]} 33. Rh7 {[%emt 0:01:18]} 1-0

[Event "41st Jacques-Lemans-Open 2022"]
[Site "St. Veit/Glan"]
[Date "2022.07.12"]
[Round "5.1"]
[White "Schwab, Rene"]
[Black "Bosiocic, Marin"]
[Result "0-1"]
[ECO "B23"]
[WhiteElo "2124"]
[BlackElo "2549"]
[Annotator "ChessBase"]
[PlyCount "70"]
[EventDate "2022.07.09"]
[EventType "swiss"]
[EventCountry "AUT"]
[SourceTitle "playchess.com"]
[Source "ChessBase"]
[SourceQuality "1"]
[TimeControl "40/5400+30:1800+30"]

1. e4 {[%emt 0:00:02]} c5 {[%emt 0:00:20]} 2. Nc3 {[%emt 0:00:05]} Nc6 {[%emt 0:00:09]} 3. f4 {[%emt 0:00:05]} e6 {[%emt 0:00:23]} 4. Nf3 {[%emt 0:00:05]} d5 {[%emt 0:00:08]} 5. Bb5 {[%emt 0:00:43]} Nge7 {[%emt 0:00:11]} 6. e5 {[%emt 0:12:33]} a6 {[%emt 0:04:32]} 7. Be2 {[%emt 0:00:06]} Nf5 {[%emt 0:02:10]} 8. O-O {[%emt 0:00:40]} h5 {[%emt 0:01:37]} 9. b3 {[%emt 0:02:24]} h4 {[%emt 0:05:26]} 10. h3 {[%emt 0:04:55]} b5 {[%emt 0:01:58]} 11. d3 {[%emt 0:03:03]} Bb7 {[%emt 0:01:55]} 12. Re1 {[%emt 0:02:10]} Be7 {[%emt 0:01:27]} 13. Bf1 {[%emt 0:00:18]} Qc7 {[%emt 0:00:43]} 14. Ne2 {[%emt 0:03:10]} d4 {[%emt 0:01:27]} 15. c3 {[%emt 0:02:28]} Rd8 {[%emt 0:01:09]} 16. cxd4 {[%emt 0:01:00]} cxd4 {[%emt 0:00:09]} 17. a3 {[%emt 0:01:16]} b4 {[%emt 0:03:02]} 18. Bd2 {[%emt 0:08:38]} bxa3 {[%emt 0:01:42]} 19. Qb1 {[%emt 0:00:43]} Nb4 {[%emt 0:03:45]} 20. Rc1 {[%emt 0:01:20]} Qb6 {[%emt 0:00:31]} 21. Ne1 {[%emt 0:04:32]} Rd5 {[%emt 0:04:09]} 22. Bxb4 {[%emt 0:06:57]} Bxb4 {[%emt 0:05:24]} 23. Nc2 {[%emt 0:00:23]} Bd2 {[%emt 0:00:22]} 24. Rd1 {[%emt 0:00:05]} Be3+ {[%emt 0:00:13]} 25. Kh2 {[%emt 0:01:03]} g5 {[%emt 0:00:38]} 26. Nxa3 {[%emt 0:01:06]} gxf4 {[%emt 0:00:50]} 27. Nc4 {[%emt 0:01:17]} Qd8 {[%emt 0:01:46]} 28. Qa2 {[%emt 0:03:42]} Qg5 {[%emt 0:02:01]} 29. Nxe3 {[%emt 0:02:17]} fxe3 30. Qa4+ {[%emt 0:00:29]} Rb5 {[%emt 0:00:38]} 31. Rdc1 {[%emt 0:03:50]} Ng3 {[%emt 0:00:52]} 32. Nxg3 {[%emt 0:04:51]} Qxg3+ {[%emt 0:00:10]} 33. Kg1 {[%emt 0:00:31]} Qf2+ {[%emt 0:00:11]} 34. Kh1 {[%emt 0:00:51]} e2 {[%emt 0:00:12]} 35. Qa2 {[%emt 0:01:23]} exf1=Q+ 0-1

[Event "41st Jacques-Lemans-Open 2022"]
[Site "St. Veit/Glan"]
[Date "2022.07.12"]
[Round "5.2"]
[White "Rogic, Davor"]
[Black "Koelber, Daniel"]
[Result "0-1"]
[ECO "B50"]
[WhiteElo "2474"]
[BlackElo "2176"]
[Annotator "ChessBase"]
[PlyCount "98"]
[EventDate "2022.07.09"]
[EventType "swiss"]
[EventCountry "AUT"]
[SourceTitle "playchess.com"]
[Source "ChessBase"]
[SourceQuality "1"]
[TimeControl "40/5400+30:1800+30"]

1. e4 {[%emt 0:00:08]} c5 {[%emt 0:00:10]} 2. Nf3 {[%emt 0:00:09]} d6 {[%emt 0:00:07]} 3. Bc4 {[%emt 0:00:08]} e6 {[%emt 0:00:39]} 4. O-O {[%emt 0:00:47]} Nf6 {[%emt 0:01:01]} 5. d3 {[%emt 0:01:12]} Be7 {[%emt 0:00:36]} 6. c3 {[%emt 0:00:51]} O-O {[%emt 0:01:01]} 7. Bb3 {[%emt 0:00:22]} Nc6 {[%emt 0:05:35]} 8. Re1 {[%emt 0:01:24]} e5 {[%emt 0:04:17]} 9. Nbd2 {[%emt 0:01:57]} Re8 {[%emt 0:04:51]} 10. Nf1 {[%emt 0:01:36]} Bf8 {[%emt 0:00:19]} 11. Bg5 {[%emt 0:01:18]} h6 {[%emt 0:02:34]} 12. Bh4 {[%emt 0:01:07]} g6 {[%emt 0:15:19]} 13. Ne3 {[%emt 0:03:59]} Bg7 {[%emt 0:05:48]} 14. h3 {[%emt 0:03:04]} Be6 {[%emt 0:03:23]} 15. Nd2 {[%emt 0:04:43]} Qd7 {[%emt 0:05:07]} 16. Qf3 {[%emt 0:03:18]} Nh5 {[%emt 0:02:52]} 17. Nd5 {[%emt 0:05:37]} Nf4 {[%emt 0:07:11]} 18. Nf1 {[%emt 0:12:23]} Bxd5 {[%emt 0:02:52]} 19. exd5 {[%emt 0:03:40]} Ne7 {[%emt 0:00:12]} 20. d4 {[%emt 0:04:37]} cxd4 {[%emt 0:02:16]} 21. cxd4 {[%emt 0:00:17]} Nf5 {[%emt 0:00:29]} 22. dxe5 {[%emt 0:01:41]} Nxg2 {[%emt 0:06:23]} 23. Qxg2 {[%emt 0:07:26]} Nxh4 {[%emt 0:00:05]} 24. Qg3 {[%emt 0:00:56]} Qd8 {[%emt 0:02:34]} 25. exd6 {[%emt 0:03:51]} Nf5 {[%emt 0:04:10]} 26. Qf4 {[%emt 0:10:49]} Qxd6 {[%emt 0:01:23]} 27. Qa4 {[%emt 0:01:19]} Rxe1 {[%emt 0:01:53]} 28. Rxe1 {[%emt 0:00:03]} Nd4 {[%emt 0:00:43]} 29. Re3 {[%emt 0:03:41]} Qf4 {[%emt 0:05:16]} 30. Ng3 {[%emt 0:05:19]} Rc8 {[%emt 0:02:54]} 31. Qd7 {[%emt 0:03:42]} Rc1+ {[%emt 0:01:30]} 32. Kg2 {[%emt 0:00:06]} Rc7 {[%emt 0:03:44]} 33. Qd8+ {[%emt 0:02:32]} Bf8 {[%emt 0:00:54]} 34. Ne4 {[%emt 0:02:14]} Re7 {[%emt 0:01:13]} 35. d6 {[%emt 0:09:08]} Rxe4 {[%emt 0:00:14]} 36. d7 {[%emt 0:00:06]} Rxe3 {[%emt 0:01:19]} 37. fxe3 {[%emt 0:00:05]} Qf3+ {[%emt 0:00:40]} 38. Kh2 {[%emt 0:00:09]} Qf2+ {[%emt 0:00:27]} 39. Kh1 {[%emt 0:00:03]} Ne2 {[%emt 0:02:44]} 40. Bxf7+ {[%emt 0:00:35]} Qxf7 {[%emt 0:00:31]} 41. Kg2 {[%emt 0:30:03]} Qd5+ {[%emt 0:32:29]} 42. Kf2 {[%emt 0:00:17]} Qd2 {[%emt 0:00:00]} 43. Qe8 {[%emt 0:00:00]} Nd4+ {[%emt 0:00:00]} 44. Kg3 {[%emt 0:00:00]} Nc6 {[%emt 0:00:00]} 45. Qxg6+ {[%emt 0:00:00]} Kh8 {[%emt 0:00:00]} 46. Qf6+ {[%emt 0:00:00]} Bg7 {[%emt 0:00:00]} 47. Qe6 {[%emt 0:00:00]} Qd3 {[%emt 0:00:00]} 48. b4 {[%emt 0:00:00]} Kh7 {[%emt 0:00:00]} 49. b5 {[%emt 0:00:00]} Ne5 {[%emt 0:00:00]} 0-1

[Event "41st Jacques-Lemans-Open 2022"]
[Site "St. Veit/Glan"]
[Date "2022.07.12"]
[Round "5.3"]
[White "Kruckenhauser, Arthur"]
[Black "Riemelmoser, Franz"]
[Result "0-1"]
[ECO "C15"]
[WhiteElo "2303"]
[BlackElo "2237"]
[Annotator "ChessBase"]
[PlyCount "54"]
[EventDate "2022.07.09"]
[EventType "swiss"]
[EventCountry "AUT"]
[SourceTitle "playchess.com"]
[Source "ChessBase"]
[SourceQuality "1"]
[TimeControl "40/5400+30:1800+30"]

1. e4 {[%emt 0:00:07]} e6 {[%emt 0:00:10]} 2. d4 {[%emt 0:00:10]} d5 {[%emt 0:00:08]} 3. Nc3 {[%emt 0:00:05]} Bb4 {[%emt 0:00:25]} 4. Nge2 {[%emt 0:00:25]} Nc6 {[%emt 0:00:42]} 5. a3 {[%emt 0:00:51]} Ba5 {[%emt 0:00:16]} 6. e5 {[%emt 0:06:01]} f6 {[%emt 0:02:32]} 7. b4 {[%emt 0:00:57]} Bb6 {[%emt 0:00:09]} 8. Na4 {[%emt 0:00:30]} Bd7 {[%emt 0:05:27]} 9. Nxb6 {[%emt 0:01:24]} axb6 {[%emt 0:00:10]} 10. Bb2 {[%emt 0:03:44]} Nh6 {[%emt 0:01:06]} 11. g3 {[%emt 0:03:27]} O-O {[%emt 0:01:16]} 12. f4 {[%emt 0:02:01]} Ne7 {[%emt 0:06:10]} 13. Qd2 {[%emt 0:12:44]} Bb5 {[%emt 0:01:11]} 14. Bh3 {[%emt 0:05:06]} Qd7 {[%emt 0:03:49]} 15. Nc3 {[%emt 0:09:10]} Nhf5 {[%emt 0:00:35]} 16. O-O-O {[%emt 0:05:36]} fxe5 {[%emt 0:02:21]} 17. Nxb5 {[%emt 0:01:26]} Qxb5 {[%emt 0:00:39]} 18. dxe5 {[%emt 0:00:36]} c5 {[%emt 0:01:44]} 19. g4 {[%emt 0:06:40]} Nd4 {[%emt 0:05:09]} 20. Bxd4 {[%emt 0:03:19]} cxd4 {[%emt 0:00:11]} 21. g5 {[%emt 0:13:39]} Rxa3 {[%emt 0:11:19]} 22. Bxe6+ {[%emt 0:00:10]} Kh8 {[%emt 0:00:08]} 23. Qxd4 {[%emt 0:05:27]} Rfa8 {[%emt 0:17:52]} 24. Kd2 {[%emt 0:11:34]} Nc6 {[%emt 0:01:06]} 25. Bd7 {[%emt 0:02:54]} Nxd4 {[%emt 0:00:12]} 26. Bxb5 {[%emt 0:00:01]} Nxb5 {[%emt 0:00:12]} 27. f5 {[%emt 0:01:22]} Nd4 {[%emt 0:00:42]} 0-1

[Event "41st Jacques-Lemans-Open 2022"]
[Site "St. Veit/Glan"]
[Date "2022.07.12"]
[Round "5.4"]
[White "Miazhynski, Yuri"]
[Black "Huber, Benedikt"]
[Result "1/2-1/2"]
[ECO "C50"]
[WhiteElo "2166"]
[BlackElo "2289"]
[Annotator "ChessBase"]
[PlyCount "54"]
[EventDate "2022.07.09"]
[EventType "swiss"]
[EventCountry "AUT"]
[SourceTitle "playchess.com"]
[Source "ChessBase"]
[SourceQuality "1"]
[TimeControl "40/5400+30:1800+30"]

1. e4 {[%emt 0:00:06]} e5 {[%emt 0:00:08]} 2. Nf3 {[%emt 0:00:10]} Nc6 {[%emt 0:00:08]} 3. Bc4 {[%emt 0:00:18]} Nf6 {[%emt 0:00:11]} 4. d3 {[%emt 0:00:13]} Bc5 {[%emt 0:00:08]} 5. c3 {[%emt 0:00:33]} a6 {[%emt 0:00:12]} 6. O-O {[%emt 0:00:46]} d6 {[%emt 0:00:06]} 7. Bb3 {[%emt 0:03:47]} Ba7 {[%emt 0:00:07]} 8. Nbd2 {[%emt 0:01:54]} O-O {[%emt 0:00:08]} 9. Re1 {[%emt 0:00:14]} h6 {[%emt 0:02:10]} 10. Nf1 {[%emt 0:03:09]} Re8 {[%emt 0:00:28]} 11. Ng3 {[%emt 0:12:27]} Be6 {[%emt 0:00:21]} 12. Bxe6 {[%emt 0:04:42]} Rxe6 {[%emt 0:00:21]} 13. Be3 {[%emt 0:00:17]} Bxe3 {[%emt 0:05:59]} 14. Rxe3 {[%emt 0:00:14]} d5 {[%emt 0:00:47]} 15. h3 {[%emt 0:04:37]} g6 {[%emt 0:15:49]} 16. Re1 {[%emt 0:07:09]} d4 {[%emt 0:06:49]} 17. c4 {[%emt 0:07:53]} Nd7 {[%emt 0:07:42]} 18. Qd2 {[%emt 0:19:23]} Kh7 {[%emt 0:11:50]} 19. b4 {[%emt 0:06:34]} b5 {[%emt 0:01:21]} 20. a4 {[%emt 0:02:47]} Qf8 {[%emt 0:16:11]} 21. axb5 {[%emt 0:12:06]} Nxb4 {[%emt 0:03:57]} 22. Ra5 {[%emt 0:00:10]} c5 {[%emt 0:05:31]} 23. Rea1 {[%emt 0:00:16]} Ree8 {[%emt 0:02:45]} 24. bxa6 {[%emt 0:00:53]} Nb8 {[%emt 0:00:14]} 25. Ne1 {[%emt 0:04:43]} Rxa6 {[%emt 0:02:05]} 26. Rxa6 {[%emt 0:00:10]} N8xa6 {[%emt 0:00:05]} 27. f4 {[%emt 0:00:13]} Qd6 {[%emt 0:06:54]} 1/2-1/2